bitfinex/quotes_ETHUSD_20250213
["timestamp","ask_amount","ask_price","bid_price","bid_amount"]
[1739484461609,2.249,2671.5,2670.9,0.8251]
[1739484461610,0.015,2671.4,2670.9,4.56908]
[1739484461812,0.3087,2671.3,2671.0,3.74389]
[1739484462828,6.3012,2671.3,2670.7,4.51825]
[1739484463029,6.3012,2671.3,2670.9,3.74404]
[1739484463231,2.5577,2671.3,2670.9,3.74404]
[1739484463529,2.5577,2671.3,2670.9,3.74396]
[1739484464922,6.3012,2671.3,2670.9,3.74396]
[1739484466331,2.5577,2671.3,2670.9,7.48793]
[1739484466531,3.74332,2671.5,2670.9,0.826193]
[1739484466532,2.5577,2671.5,2670.9,0.826193]
[1739484466725,0.1,2672.6,2671.9,3.74265]
[1739484466726,0.3087,2672.0,2671.9,3.74265]
[1739484466932,0.3087,2672.4,2671.8,7.48549]
[1739484467164,0.5827,2672.4,2672.0,3.74248]
[1739484467391,0.5827,2672.4,2671.8,0.7704]
[1739484467532,3.74979,2672.2,2671.7,3.74284]
[1739484467881,2.249,2671.9,2671.6,0.7704]
[1739484468036,0.015,2671.8,2671.5,3.74312]
[1739484468236,0.015,2671.8,2671.6,3.74305]
[1739484468463,0.015,2671.8,2671.7,3.74293]
[1739484468909,0.015,2672.0,2671.9,3.74265]
[1739484469216,0.55,2672.3,2672.0,3.74251]
[1739484469217,0.274,2672.3,2672.0,3.74251]
[1739484469706,3.274,2672.6,2672.2,3.74212]
[1739484469918,2.249,2672.5,2672.1,3.74229]
[1739484470210,0.015,2672.4,2672.1,3.74229]
[1739484470361,2.249,2672.5,2672.1,3.74229]
[1739484470362,2.249,2672.5,2672.1,0.54535109]
[1739484470563,2.249,2672.7,2672.3,4.56498]
[1739484470770,2.249,2672.7,2672.6,3.74167]
[1739484470996,2.264,2672.7,2672.5,3.7417]
[1739484471199,2.264,2672.7,2672.5,7.48344]
[1739484471399,2.264,2672.7,2672.5,3.7417]
[1739484471600,0.015,2672.7,2672.5,7.48342]
[1739484471909,0.015,2672.7,2672.5,3.7417]
[1739484472114,0.015,2672.7,2672.5,7.48342]
[1739484472341,0.015,2672.7,2672.6,3.74167]
[1739484472541,0.3087,2673.2,2672.6,3.74167]
[1739484472679,0.3087,2673.2,2672.4,3.74195]
[1739484472879,0.005,2673.4,2673.3,3.74069]
[1739484473408,1e-05,2673.4,2673.3,3.74069]
[1739484473721,1e-05,2673.4,2673.3,4.569161]
[1739484473924,1e-05,2673.4,2673.3,4.60656531]
[1739484474290,1e-05,2673.4,2673.3,4.569161]
[1739484474494,1e-05,2673.4,2673.3,4.60656267]
[1739484474913,1e-05,2673.4,2673.3,8.37736267]
[1739484475119,1e-05,2673.4,2673.3,8.339961]
[1739484475626,1e-05,2673.4,2673.3,5.339961]
[1739484475974,1e-05,2673.4,2673.2,3.74082]
[1739484476181,1e-05,2673.4,2673.3,3.74069]
[1739484476395,1e-05,2673.4,2673.2,3.74082]
[1739484476629,1e-05,2673.4,2673.0,3.74105]
[1739484476931,1e-05,2673.4,2672.8,3.74132]
[1739484476932,4.04936,2673.4,2672.8,3.74132]
[1739484477135,0.015,2673.3,2672.6,0.7569]
[1739484477279,3.74106,2673.1,2672.6,1.206779]
[1739484477487,3.74125,2672.9,2672.3,0.7569]
[1739484477729,0.015,2673.0,2672.3,4.49891]
[1739484478041,0.015,2672.8,2672.3,0.7569]
[1739484478218,0.015,2672.8,2672.2,3.7422]
[1739484478528,0.015,2672.8,2672.3,3.74205]
[1739484478694,0.565,2672.8,2672.3,0.748435]
[1739484478896,0.015,2672.6,2672.0,4.49601]
[1739484479113,3.75675,2672.6,2672.0,4.49601]
[1739484479309,3.74182,2672.5,2672.0,0.7536]
[1739484479535,0.015,2672.6,2671.8,3.74279]
[1739484479731,0.015,2672.3,2671.6,0.7928]
[1739484479949,0.3237,2672.3,2671.6,4.53576]
[1739484480231,0.3237,2672.3,2671.8,3.74276]
[1739484480532,0.3237,2672.3,2671.8,4.570612]
[1739484480860,0.015,2672.3,2671.9,3.74265]
[1739484481029,0.015,2672.3,2672.0,3.74249]
[1739484481535,4.32445,2672.6,2671.8,0.827852]
[1739484481536,0.3087,2672.6,2671.8,0.827852]
[1739484481738,0.3087,2672.6,2672.3,3.742]
[1739484481903,0.015,2672.6,2672.3,3.742]
[1739484482109,0.015,2672.6,2672.1,3.7423]
[1739484482627,0.015,2672.6,2671.9,3.74258]
[1739484482628,0.015,2672.7,2672.3,3.74209]
[1739484483632,0.015,2672.8,2672.5,3.74181]
[1739484483796,0.015,2672.8,2672.5,3.74172]
[1739484484001,0.015,2672.9,2672.6,3.74158]
[1739484484604,0.015,2672.9,2672.5,3.74172]
[1739484484806,0.015,2673.0,2672.7,3.74152]
[1739484484999,3.75619,2673.0,2672.3,8.10191734]
[1739484485204,3.75619,2673.0,2672.4,4.63241173]
[1739484485702,0.015,2673.0,2672.4,4.63241173]
[1739484485903,0.3087,2672.7,2672.2,3.74215]
[1739484486569,0.015,2672.4,2671.9,3.74253]
[1739484486703,0.015,2672.3,2671.9,3.74264]
[1739484486902,0.015,2672.3,2671.6,0.8183]
[1739484487184,0.0075,2672.3,2672.1,3.7423]
[1739484487325,0.015,2672.4,2672.1,3.7423]
[1739484487708,0.015,2672.4,2672.0,3.74249]
[1739484487954,0.015,2672.4,2671.8,3.74269]
[1739484488268,3.74211,2672.3,2671.9,0.374269]
[1739484488461,0.015,2672.2,2671.8,3.74269]
[1739484488611,0.3087,2672.1,2671.8,3.74269]
[1739484489366,0.3087,2672.1,2671.6,3.74298]
[1739484489514,0.3087,2672.1,2671.7,3.74293]
[1739484489863,0.3087,2672.1,2671.8,3.74279]
[1739484490007,0.015,2672.2,2671.9,3.74256]
[1739484490208,0.015,2672.2,2671.6,3.74298]
[1739484490507,0.015,2672.2,2671.7,3.74281]
[1739484490807,0.015,2672.2,2671.5,7.48631]
[1739484491129,3.74237,2672.1,2671.6,0.748631]
[1739484491323,0.015,2672.2,2671.6,0.748631]
[1739484491567,3.7573,2672.2,2671.7,3.74286]
[1739484491863,0.015,2672.1,2671.4,3.74332]
[1739484492150,0.015,2671.8,2671.4,3.74335]
[1739484492562,4.3079,2671.8,2671.1,3.74377]
[1739484492707,3.74293,2671.7,2671.2,0.823928]
[1739484492907,3.74293,2671.7,2671.2,4.567558]
[1739484493763,3.74294,2671.7,2671.2,4.567558]
[1739484494406,0.565,2671.6,2671.0,4.49552]
[1739484494608,4.05191,2671.5,2671.0,3.74382]
[1739484494826,0.3087,2671.5,2671.1,3.74375]
[1739484495113,0.0075,2671.4,2671.1,3.7437]
[1739484495661,0.0075,2671.4,2671.2,3.74356]
[1739484496465,0.3087,2671.5,2671.2,0.748739]
[1739484496663,0.3087,2671.9,2671.3,3.74342]
[1739484496803,0.3087,2671.9,2671.4,3.74334]
[1739484496804,5.249,2671.8,2671.4,3.74334]
[1739484497009,0.0075,2671.7,2671.4,3.74334]
[1739484498910,0.0075,2671.7,2671.3,3.74342]
[1739484499111,0.0075,2671.7,2670.9,3.74399]
[1739484499366,0.0075,2671.7,2671.2,3.74354]
[1739484499511,0.0075,2671.7,2671.3,3.74345]
[1739484499711,0.0075,2671.7,2671.2,3.74354]
[1739484499922,0.0075,2671.7,2671.3,3.74336]
[1739484500275,3.75045,2671.7,2671.2,3.74362]
[1739484501272,0.0075,2671.7,2671.2,3.74353]
[1739484501520,0.0075,2671.7,2671.3,3.74339]
[1739484501768,3.75045,2671.7,2671.2,0.4117929]
[1739484501983,5.99945,2671.7,2671.1,3.74365]
[1739484502360,5.99945,2671.7,2671.2,3.74359]
[1739484503727,0.5575,2671.7,2671.0,4.118289]
[1739484504073,2.8065,2671.7,2671.2,3.74355]
[1739484504288,2.8065,2671.7,2671.3,3.74349]
[1739484504576,2.8065,2671.7,2671.2,0.7963]
[1739484504731,2.8065,2671.7,2671.4,3.74326]
[1739484504935,2.8065,2671.7,2671.2,4.53984]
[1739484505277,2.8065,2671.7,2671.3,3.74346]
[1739484505964,8.1265,2671.7,2671.3,3.74346]
[1739484506405,0.0075,2671.5,2671.1,3.74375]
[1739484506605,0.3087,2671.4,2671.1,7.48746]
[1739484506851,2.249,2671.3,2671.1,3.74371]
[1739484507005,2.249,2671.3,2671.2,3.7435]
[1739484508157,0.0075,2671.5,2671.3,3.74342]
[1739484508661,0.0075,2671.5,2671.2,3.7435]
[1739484508835,0.0075,2671.5,2671.1,0.374371]
[1739484509138,0.0075,2671.5,2671.2,3.74361]
[1739484510156,0.0075,2671.5,2671.1,4.118031]
[1739484510454,0.0075,2671.5,2671.2,3.74363]
[1739484510671,0.0075,2671.5,2671.3,3.74346]
[1739484510967,0.0075,2671.5,2671.3,3.74338]
[1739484511662,0.0075,2671.5,2671.3,7.48679]
[1739484511803,0.0075,2671.5,2671.4,4.492029]
[1739484512302,0.0075,2671.5,2671.4,3.74335]
[1739484512858,2.249,2671.6,2671.5,3.74321]
[1739484513242,5.32,2671.7,2671.5,3.74321]
[1739484513243,0.0075,2671.7,2671.5,3.74321]
[1739484513442,0.0075,2671.7,2671.6,3.74305]
[1739484513849,0.0075,2671.7,2671.4,3.74322]
[1739484514507,0.0075,2671.5,2671.3,3.74345]
[1739484514707,0.0075,2671.5,2671.1,3.74367]
[1739484515061,2.249,2671.4,2671.2,3.74356]
[1739484515761,2.2565,2671.4,2671.3,3.74349]
[1739484516154,2.2565,2671.4,2671.1,4.198817]
[1739484516358,2.2565,2671.4,2671.2,3.74357]
[1739484517165,2.2565,2671.4,2671.2,3.74363]
[1739484517656,2.2565,2671.4,2671.2,3.74356]
[1739484518559,2.2565,2671.4,2671.2,3.74357]
[1739484519212,2.2565,2671.4,2671.2,7.48711]
[1739484519415,2.2565,2671.4,2671.2,3.74354]
[1739484519610,0.0075,2671.3,2670.8,3.7441]
[1739484519869,0.0075,2671.3,2670.8,7.48817]
[1739484519870,2.249,2671.1,2670.8,7.48817]
[1739484520501,2.249,2671.1,2670.8,7.48819]
[1739484520701,0.0075,2671.0,2670.8,3.74407]
[1739484520952,2.5652,2671.0,2670.6,3.74439]
[1739484521120,2.5652,2671.0,2670.6,7.48879]
[1739484521557,2.2565,2671.0,2670.9,3.74405]
[1739484522109,2.2565,2671.0,2670.7,3.74427]
[1739484522612,2.2565,2671.0,2670.7,3.74425]
[1739484522844,2.2565,2671.0,2670.7,7.48851]
[1739484523011,0.0075,2671.0,2670.7,7.48851]
[1739484523357,0.0075,2671.0,2670.8,3.74414]
[1739484523659,0.0075,2671.0,2670.9,3.74405]
[1739484523842,0.0075,2671.0,2670.8,3.74413]
[1739484524037,0.0075,2671.0,2670.7,0.8043]
[1739484524214,0.0075,2671.0,2670.9,3.74405]
[1739484525027,0.0075,2671.0,2670.8,3.74419]
[1739484526032,0.0075,2671.0,2670.9,3.74405]
[1739484526493,2.249,2671.2,2671.1,3.74377]
[1739484526775,2.8065,2671.2,2671.1,3.74377]
[1739484527303,2.249,2671.2,2671.1,3.74377]
[1739484527428,0.0075,2671.4,2671.2,3.74351]
[1739484527785,0.0075,2671.4,2671.3,3.74349]
[1739484527986,0.0075,2671.4,2671.0,3.74379]
[1739484528137,0.0075,2671.4,2671.2,3.74361]
[1739484528683,0.0075,2671.4,2671.2,3.74356]
[1739484528890,0.0075,2671.4,2671.2,7.48713]
[1739484529033,0.0075,2671.4,2671.2,3.74356]
[1739484529234,0.0075,2671.4,2671.3,3.74349]
[1739484530134,2.2565,2671.4,2671.3,3.74349]
[1739484531380,2.249,2671.4,2671.3,5.2691]
[1739484532181,2.2565,2671.7,2671.3,1.52561]
[1739484532480,2.2565,2671.7,2671.6,3.74307]
[1739484533071,2.2565,2671.7,2671.5,3.74319]
[1739484533267,2.249,2671.6,2671.5,3.74319]
[1739484533985,2.2565,2671.6,2671.5,3.74319]
[1739484534488,0.0075,2671.6,2671.5,3.74319]
[1739484536345,0.0075,2671.6,2671.5,4.569533]
[1739484537289,0.0075,2671.6,2671.3,0.7769]
[1739484537459,0.0075,2671.6,2671.4,3.74329]
[1739484537661,0.0075,2671.6,2671.5,3.74321]
[1739484538262,0.0075,2671.6,2671.4,3.74329]
[1739484538480,0.0075,2671.6,2671.4,3.74326]
[1739484538790,0.0075,2671.6,2671.5,3.74321]
[1739484540399,0.0075,2671.6,2671.4,3.74335]
[1739484540565,0.0075,2671.6,2671.4,7.48664]
[1739484540767,0.0075,2671.6,2671.4,3.74329]
[1739484541196,0.0075,2671.6,2671.3,3.74341]
[1739484541343,0.0075,2671.6,2671.4,3.74334]
[1739484541548,0.0075,2671.6,2671.5,3.74321]
[1739484542481,0.0075,2671.6,2671.3,3.74348]
[1739484542682,0.0075,2671.6,2671.4,3.74328]
[1739484542879,0.0075,2671.6,2671.3,3.74348]
[1739484543182,0.0075,2671.6,2671.4,3.74323]
[1739484543384,0.0075,2671.6,2671.5,3.74321]
[1739484544784,0.0075,2671.6,2671.4,3.74323]
[1739484545686,0.0075,2671.6,2671.4,7.48651]
[1739484546096,0.0075,2671.5,2671.1,0.7943]
[1739484546296,0.0075,2671.5,2670.6,0.18857311]
[1739484546297,2.2565,2671.4,2671.3,3.74347]
[1739484547326,0.0075,2671.4,2671.3,3.74347]
[1739484551041,0.0075,2671.4,2671.3,3.74349]
[1739484551223,0.0075,2671.4,2671.2,3.74356]
[1739484552145,0.0075,2671.4,2671.3,3.74349]
[1739484555008,0.0075,2671.4,2671.3,4.492195]
[1739484555206,2.249,2671.6,2671.5,3.74321]
[1739484555609,2.2565,2671.6,2671.5,3.74321]
[1739484556242,0.0075,2671.6,2671.5,3.74321]
[1739484557024,0.0075,2671.6,2671.4,3.74333]
[1739484557851,2.249,2671.3,2671.2,3.74352]
[1739484558159,2.249,2671.3,2671.1,3.74377]
[1739484558639,2.249,2671.3,2671.0,3.74381]
[1739484558640,0.0075,2671.2,2671.0,3.74381]
[1739484559347,2.249,2671.1,2670.7,3.74426]
[1739484559548,2.249,2670.9,2670.7,3.74426]
[1739484559890,2.249,2670.9,2670.8,3.74419]
[1739484561742,0.0075,2671.1,2670.8,3.74419]
[1739484563044,0.0075,2671.1,2671.0,3.74391]
[1739484565045,0.0075,2671.1,2670.9,3.74403]
[1739484565342,2.249,2671.0,2670.8,3.74418]
[1739484565699,2.2565,2671.0,2670.9,3.74405]
[1739484566205,0.0075,2671.0,2670.9,3.74405]
[1739484568459,2.249,2671.2,2670.9,3.74405]
[1739484568460,2.249,2671.4,2671.3,3.74347]
[1739484568823,2.2565,2671.4,2671.3,3.74347]
[1739484569357,2.8065,2671.4,2671.3,3.74347]
[1739484570019,2.2565,2671.4,2671.3,3.74347]
[1739484570222,2.2565,2671.4,2671.2,3.74363]
[1739484570606,2.2565,2671.4,2671.0,6.7439]
[1739484570607,0.0075,2671.3,2671.0,6.7439]
[1739484570804,0.5575,2671.1,2670.7,3.74425]
[1739484571047,0.5575,2671.1,2670.6,4.49938]
[1739484571048,0.0075,2670.9,2670.6,4.49938]
[1739484571346,0.0075,2670.9,2670.7,6.74431]
[1739484571717,2.249,2670.8,2670.3,0.7613]
[1739484571917,0.55,2670.7,2670.3,3.74482]
[1739484572118,0.264,2670.6,2670.3,3.74482]
[1739484572338,0.264,2670.4,2670.3,3.74489]
[1739484572656,0.814,2670.4,2670.2,3.74502]
[1739484572872,0.814,2670.4,2670.3,3.74489]
[1739484573208,0.264,2670.4,2670.3,4.570011]
[1739484573562,2.249,2670.7,2670.6,3.74447]
[1739484574330,0.274,2671.1,2670.4,4.54915]
[1739484574331,2.249,2671.0,2670.8,3.7441]
[1739484574656,2.249,2671.0,2670.6,3.74434]
[1739484574806,2.249,2670.8,2670.6,3.74434]
[1739484575222,0.0075,2670.7,2670.6,3.74434]
[1739484575443,0.0075,2670.7,2670.4,4.54903]
[1739484575651,2.2565,2670.6,2670.5,3.74458]
[1739484577256,7.5765,2670.6,2670.5,3.74458]
[1739484577637,5.32,2670.6,2670.5,3.74458]
[1739484577844,5.32,2670.6,2670.5,4.56928]
[1739484581690,2.249,2671.4,2671.3,3.74349]
[1739484582048,2.2565,2671.4,2671.3,3.74349]
[1739484582253,2.2565,2671.4,2671.1,3.74375]
[1739484582763,0.0075,2671.4,2671.1,7.48745]
[1739484583057,0.0075,2671.4,2671.2,3.74351]
[1739484583295,0.0075,2671.4,2671.1,3.7437]
[1739484583465,0.0075,2671.4,2671.2,3.74362]
[1739484584602,2.2565,2671.3,2671.0,3.74378]
[1739484584900,2.2565,2671.3,2671.1,3.7437]
[1739484585452,2.2565,2671.3,2671.1,3.74365]
[1739484586307,3.83202,2671.3,2671.1,3.74365]
[1739484587203,4.38202,2671.3,2671.2,3.74363]
[1739484587406,4.38202,2671.3,2671.1,3.74365]
[1739484588072,4.38202,2671.3,2671.2,3.74363]
[1739484588284,1.57552,2671.3,2671.1,0.450515]
[1739484588510,3.74363,2671.2,2671.1,0.450515]
[1739484588806,3.74377,2671.1,2670.7,0.7909]
[1739484588958,0.0075,2671.0,2670.6,3.74447]
[1739484589353,0.0075,2671.0,2670.6,3.74439]
[1739484589603,0.0075,2671.0,2670.7,3.74427]
[1739484589905,0.0075,2671.0,2670.8,3.74419]
[1739484590110,2.8065,2671.1,2670.9,3.74399]
[1739484590265,2.8065,2671.1,2670.9,3.74397]
[1739484590779,2.8065,2671.1,2670.8,3.74419]
[1739484591375,2.8065,2671.1,2670.8,7.48831]
[1739484591615,2.8065,2671.1,2670.8,3.74412]
[1739484591911,2.8065,2671.1,2670.8,7.48823]
[1739484592078,2.8065,2671.1,2670.8,3.74411]
[1739484592590,2.8065,2671.1,2670.9,3.74401]
[1739484592790,2.8065,2671.1,2670.8,3.74411]
[1739484594858,2.8065,2671.1,2670.8,3.7441]
[1739484595915,2.8065,2671.1,2670.7,3.74425]
[1739484596116,2.8065,2671.1,2670.8,3.74415]
[1739484596419,2.8065,2671.1,2670.5,0.7909]
[1739484596560,2.8065,2671.1,2670.6,3.74447]
[1739484596961,2.8065,2671.1,2670.7,3.74422]
[1739484598113,2.8065,2671.1,2670.8,3.74413]
[1739484598617,2.8065,2671.1,2670.9,3.74398]
[1739484600330,2.8065,2671.1,2671.0,3.74391]
[1739484600970,2.249,2671.2,2671.1,3.74377]
[1739484601211,2.249,2671.2,2671.0,4.570359]
[1739484601421,2.249,2671.2,2671.0,0.826449]
[1739484601572,2.249,2671.2,2671.1,3.74377]
[1739484601767,0.0075,2671.6,2671.5,3.74321]
[1739484601768,3.82452,2671.6,2671.5,3.74321]
[1739484601975,3.74225,2672.2,2671.6,3.74302]
[1739484601976,6.5731,2672.1,2671.6,3.74302]
[1739484602175,2.249,2671.7,2671.5,0.7843]
[1739484602373,3.74287,2671.8,2671.1,3.74374]
[1739484602374,0.0075,2671.5,2671.1,3.74374]
[1739484602638,0.0075,2671.5,2671.4,3.74335]
[1739484602837,2.249,2671.6,2671.4,3.74335]
[1739484602975,2.249,2671.6,2671.5,3.74321]
[1739484603176,2.249,2671.6,2671.3,4.53077]
[1739484603526,2.249,2671.7,2671.6,3.74307]
[1739484603895,2.8065,2671.7,2671.6,3.74307]
[1739484604727,2.8065,2671.7,2671.3,0.7873]
[1739484604728,2.8065,2671.7,2671.4,3.74334]
[1739484605138,2.8065,2671.7,2671.3,4.53072]
[1739484605139,2.799,2671.7,2671.6,3.74307]
[1739484605271,2.799,2671.7,2671.3,0.7873]
[1739484605272,2.249,2672.0,2671.9,3.74265]
[1739484605676,2.8065,2672.0,2671.9,3.74265]
[1739484605909,0.0075,2671.9,2671.8,3.74277]
[1739484606116,0.0075,2671.9,2671.7,0.8272]
[1739484606316,0.0075,2671.7,2671.5,0.8272]
[1739484606550,0.0075,2671.7,2671.6,3.74307]
[1739484606833,0.0075,2671.9,2671.7,3.74283]
[1739484607019,0.0075,2671.9,2671.5,5.1100876]
[1739484607197,3.75021,2671.9,2671.5,1.3669876]
[1739484607401,0.0075,2671.9,2671.5,1.3669876]
[1739484607595,0.0075,2671.9,2671.5,4.57034]
[1739484607807,2.8065,2671.9,2671.5,0.8272]
[1739484608009,5.99946,2671.7,2671.3,0.772]
[1739484608390,2.2565,2671.7,2671.3,0.772]
[1739484608748,2.249,2671.9,2671.6,3.74307]
[1739484608895,0.0075,2671.7,2671.6,4.491703]
[1739484609241,2.249,2671.9,2671.6,0.748633]
[1739484609410,0.0075,2671.8,2671.6,5.263633]
[1739484610125,0.0075,2671.8,2671.6,1.520633]
[1739484610447,0.0075,2671.6,2671.4,0.8145]
[1739484610797,0.0075,2671.4,2671.0,0.8145]
[1739484610998,6.54994,2671.4,2671.0,0.8145]
[1739484611301,0.0075,2671.2,2670.8,4.55866]
[1739484611655,0.0075,2671.2,2670.9,0.830291]
[1739484612031,2.2565,2671.0,2670.9,0.830291]
[1739484612351,2.2565,2671.0,2670.6,4.55888]
[1739484612498,2.2565,2670.8,2670.6,4.55888]
[1739484612866,2.2565,2670.8,2670.6,3.74438]
[1739484613833,2.2565,2670.8,2670.4,8.30384]
[1739484614166,2.2565,2670.8,2670.6,3.7444]
[1739484614318,2.2565,2670.8,2670.6,4.20029]
[1739484614514,2.2565,2670.8,2670.6,0.45589]
[1739484614833,2.2565,2670.8,2670.6,4.20028]
[1739484615367,2.2565,2670.8,2670.6,0.45589]
[1739484615522,2.2565,2670.8,2670.5,3.74461]
[1739484615872,2.2565,2670.8,2670.6,3.74434]
[1739484616516,2.2565,2670.8,2670.4,0.8145]
[1739484616756,0.0075,2670.9,2670.5,3.74461]
[1739484616970,0.0075,2670.9,2670.7,3.74419]
[1739484617118,0.0075,2670.9,2670.5,0.830385]
[1739484617326,0.0075,2670.9,2670.5,3.74453]
[1739484618337,0.0075,2670.9,2670.5,3.74448]
[1739484618519,0.0075,2670.9,2670.7,3.74432]
[1739484619380,0.0075,2670.9,2670.8,3.74419]
[1739484619669,0.0075,2670.9,2670.7,3.74422]
[1739484619874,0.0075,2670.9,2670.7,3.74426]
[1739484620025,0.0075,2670.9,2670.6,3.74447]
[1739484620365,0.0075,2670.9,2670.6,7.48886]
[1739484620520,0.0075,2670.9,2670.6,0.830336]
[1739484620873,0.0075,2670.9,2670.8,3.74419]
[1739484621923,0.0075,2671.0,2670.9,3.74405]
[1739484623179,0.0075,2671.0,2670.8,3.74412]
[1739484623973,0.0075,2671.0,2670.9,3.74405]
[1739484625945,0.0075,2671.0,2670.8,3.74418]
[1739484626141,0.0075,2671.0,2670.8,3.74412]
[1739484626478,0.0075,2671.0,2670.7,3.74433]
[1739484626978,2.2565,2671.0,2670.8,3.74412]
[1739484627130,2.2565,2671.0,2670.9,3.74405]
[1739484627131,2.8065,2671.0,2670.9,3.74405]
[1739484628680,2.8065,2671.0,2670.8,3.74417]
[1739484628882,2.8065,2671.0,2670.8,7.48828]
[1739484629029,2.8065,2671.0,2670.9,3.74405]
[1739484629229,2.249,2671.1,2671.0,4.49941]
[1739484629431,1.57552,2671.2,2671.1,3.74377]
[1739484631038,1.57552,2671.2,2671.1,4.55577]
[1739484632435,1.57552,2671.2,2671.1,4.66100829]
[1739484633272,0.0075,2671.9,2671.8,3.74279]
[1739484633678,0.0075,2671.9,2671.8,3.84804771]
[1739484634649,0.0075,2671.9,2671.8,0.10525771]
[1739484634960,0.0075,2671.9,2671.6,3.74295]
[1739484635299,0.0075,2671.9,2671.7,0.10504413]
[1739484635457,0.0075,2671.9,2671.8,3.74279]
[1739484635979,0.0075,2671.9,2671.8,3.84783413]
[1739484636991,0.0075,2671.9,2671.8,0.10504413]
[1739484637293,3.1152,2671.9,2671.5,3.74307]
[1739484637441,3.1152,2671.9,2671.8,0.1041411]
[1739484637641,3.1152,2671.9,2671.6,3.74305]
[1739484637870,3.1152,2671.9,2671.8,0.1041411]
[1739484638079,3.1152,2671.9,2671.6,3.74298]
[1739484638300,3.1152,2671.9,2671.8,0.10421875]
[1739484638489,3.1152,2671.9,2671.6,3.74298]
[1739484638694,3.1152,2671.9,2671.8,0.10421875]
[1739484638841,3.1152,2671.9,2671.6,3.74298]
[1739484639046,3.1152,2671.9,2671.8,0.10428671]
[1739484639245,6.85788,2671.9,2671.5,3.7432]
[1739484639479,3.1152,2671.9,2671.8,0.10428671]
[1739484639786,4.69072,2671.9,2671.8,0.10428671]
[1739484639985,8.43337,2671.9,2671.4,3.74324]
[1739484640186,8.43337,2671.9,2671.5,0.10428671]
[1739484640369,4.69072,2671.9,2671.5,3.84738671]
[1739484641152,2.8065,2671.7,2671.5,0.10428671]
[1739484641390,2.8065,2671.7,2671.3,3.74342]
[1739484641655,2.8065,2671.7,2671.4,0.10428671]
[1739484642216,2.8065,2671.7,2671.5,3.74315]
[1739484642359,2.8065,2671.7,2671.6,0.10056218]
[1739484642559,2.8065,2671.7,2671.3,3.7434]
[1739484642760,2.8065,2671.7,2671.4,0.10056218]
[1739484643374,5.62688,2671.9,2671.4,0.10056218]
[1739484643375,6.85841,2671.5,2671.4,0.10056218]
[1739484643573,2.249,2671.3,2670.9,3.74395]
[1739484643910,2.249,2671.3,2671.0,0.10061073]
[1739484644127,2.2565,2671.3,2671.2,3.74363]
[1739484644461,2.249,2671.3,2671.2,3.84448346]
[1739484644664,2.249,2671.4,2671.2,3.84448346]
[1739484645179,2.2565,2671.4,2671.3,3.74349]
[1739484645422,2.2565,2671.4,2671.3,3.84432404]
[1739484646111,2.2565,2671.4,2671.3,0.10083404]
[1739484646295,2.2565,2671.4,2671.3,3.84432404]
[1739484646606,2.2565,2671.7,2671.5,3.74319]
[1739484646818,2.2565,2671.7,2671.5,3.74314]
[1739484646976,2.249,2671.6,2671.5,3.74314]
[1739484647178,2.2565,2671.6,2671.5,3.74314]
[1739484648011,1.57552,2671.8,2671.6,3.74307]
[1739484648012,2.249,2671.7,2671.6,3.74307]
[1739484648216,2.249,2671.7,2671.6,4.55907]
[1739484648996,2.2565,2672.0,2671.7,3.74279]
[1739484649310,2.8065,2672.0,2671.9,3.74265]
[1739484650069,2.8065,2672.0,2671.8,3.74268]
[1739484650270,2.8065,2672.0,2671.9,3.74265]
[1739484651016,2.8065,2672.0,2671.8,7.48545]
[1739484651318,2.8065,2672.0,2671.9,3.74265]
[1739484651522,2.8065,2672.0,2671.9,3.84322189]
[1739484652624,2.8065,2672.0,2671.9,0.10057189]
[1739484653164,2.8065,2672.0,2671.9,3.84322189]
[1739484653766,0.5575,2672.0,2671.9,3.84322189]
[1739484654081,1.57552,2672.3,2672.2,3.74223]
[1739484654399,1.57552,2672.7,2672.6,3.74167]
[1739484654764,3.83202,2672.7,2672.6,3.84197982]
[1739484655296,1.58302,2672.7,2672.6,3.84197982]
[1739484655616,2.13302,2672.7,2672.6,3.84197982]
[1739484655781,1.58302,2672.7,2672.6,4.6790388]
[1739484658577,0.565,2672.7,2672.6,4.6790388]
[1739484659571,0.5575,2672.7,2672.6,4.6790388]
[1739484663084,0.53879,2672.7,2672.6,4.6790388]
[1739484665106,0.53879,2672.7,2672.6,0.10030982]
[1739484665107,0.55379,2672.7,2672.6,0.10030982]
[1739484665305,6.54432,2672.7,2672.6,0.10030982]
[1739484665610,0.0075,2672.3,2671.9,3.74254]
[1739484665816,0.0075,2672.3,2672.0,3.74251]
[1739484666125,3.74981,2672.2,2672.0,0.827115]
[1739484666357,4.60095,2672.2,2672.1,0.09204404]
[1739484666510,4.61595,2672.2,2672.1,0.09204404]
[1739484666709,0.0075,2671.9,2671.6,3.74302]
[1739484666955,0.0075,2671.8,2671.3,3.74342]
[1739484667106,0.0075,2671.6,2671.2,3.74363]
[1739484667307,0.0075,2671.5,2671.2,0.827342]
[1739484667545,0.0075,2671.4,2670.9,3.74395]
[1739484667853,0.015,2671.2,2670.9,3.74395]
[1739484668058,0.015,2671.2,2671.0,3.7439]
[1739484668223,0.015,2671.2,2671.0,3.74391]